bitfinex-derivatives/quotes_ETHF0:USTF0_20251126
["timestamp","ask_amount","ask_price","bid_price","bid_amount"]
[1764135006101,0.4753,2943.6,2943.0,0.281]
[1764135006498,0.00277347,2944.0,2943.9,0.4627]
[1764135006700,0.00277347,2944.0,2943.9,1.09392958]
[1764135007802,0.00277347,2944.0,2943.9,0.4627]
[1764135007994,0.47807347,2944.0,2943.9,0.4627]
[1764135008407,0.75587347,2944.0,2943.5,0.2703]
[1764135008907,0.4753,2943.6,2943.5,0.733]
[1764135009104,0.47807347,2944.0,2943.9,0.4627]
[1764135010003,0.47807347,2944.0,2943.5,0.2703]
[1764135010205,0.75587347,2944.0,2943.5,0.2703]
[1764135010407,0.47807347,2944.0,2943.9,0.4627]
[1764135011012,0.4753,2943.6,2943.5,0.733]
[1764135011304,0.4753,2943.1,2943.0,0.7437]
[1764135011804,0.4753,2942.8,2942.6,0.00510543]
[1764135012506,0.4753,2942.8,2942.7,0.46654683]
[1764135012806,0.4753,2942.8,2942.7,0.00384683]
[1764135014501,0.16996,2943.2,2942.7,0.46654683]
[1764135014702,0.4753,2942.8,2942.7,0.46654683]
[1764135015409,0.4753,2942.8,2942.7,0.00384683]
[1764135017809,0.1023,2943.5,2942.7,0.46654683]
[1764135018013,0.81269845,2943.4,2942.7,0.46654683]
[1764135018209,0.1023,2943.5,2942.7,0.46654683]
[1764135019607,0.4753,2942.8,2942.7,0.00384683]
[1764135021604,0.4753,2942.8,2942.7,0.46654683]
[1764135024306,0.4753,2942.8,2942.7,0.00384683]
[1764135025906,0.4753,2942.8,2942.7,0.46654683]
[1764135026109,0.4753,2942.8,2942.7,0.00384683]
[1764135028309,0.4753,2942.8,2942.7,0.46654683]
[1764135029118,0.91190191,2943.4,2942.7,0.46654683]
[1764135029617,1.72730532,2943.4,2942.7,0.46654683]
[1764135029822,0.81540341,2943.3,2942.7,0.46654683]
[1764135030016,0.81540341,2943.2,2942.7,0.46654683]
[1764135030221,0.81540341,2943.1,2942.7,0.46654683]
[1764135030421,0.4753,2942.8,2942.7,0.46654683]
[1764135033026,0.91190191,2943.4,2942.7,0.46654683]
[1764135033420,1.72760031,2943.4,2942.7,0.46654683]
[1764135034124,0.8156984,2943.4,2942.7,0.46654683]
[1764135034427,0.91190191,2943.8,2943.3,0.4627]
[1764135034926,0.4695,2943.1,2943.0,0.7516]
[1764135035528,0.91190191,2943.8,2943.0,0.7516]
[1764135036022,1.7279718,2943.8,2943.0,0.7516]
[1764135036232,0.81606989,2943.7,2943.0,0.7516]
[1764135036533,0.91190191,2943.7,2943.0,0.7516]
[1764135036715,0.81606989,2943.6,2943.0,0.7516]
[1764135036920,1.28556989,2943.5,2943.4,0.4813]
[1764135037320,1.28556989,2943.5,2943.0,0.2703]
[1764135037523,0.4695,2943.5,2943.0,0.2703]
[1764135038436,0.78245233,2943.8,2943.7,0.4813]
[1764135038618,0.75667347,2944.0,2943.9,0.4813]
[1764135038822,0.2844,2943.5,2943.1,0.55]
[1764135039128,0.7539,2943.5,2943.4,0.4813]
[1764135039333,0.28717347,2944.0,2943.4,0.4813]
[1764135039527,0.4695,2943.5,2943.4,0.4813]
[1764135039726,0.7539,2943.5,2943.4,0.4813]
[1764135040325,0.28717347,2944.0,2943.5,0.1077]
[1764135040526,0.75667347,2944.0,2943.9,0.4813]
[1764135041030,0.47227347,2944.0,2943.9,0.4813]
[1764135041230,0.00277347,2944.0,2943.9,0.4813]
[1764135042531,1.21886659,2944.9,2944.0,0.2839]
[1764135042729,0.44765,2945.0,2943.5,0.1077]
[1764135042730,0.4695,2944.3,2944.2,0.00509641]
[1764135043529,0.47349303,2944.3,2944.2,0.00509641]
[1764135052042,0.47349303,2944.3,2943.0,0.2703]
[1764135052244,0.47349303,2944.3,2943.0,1.0433]
[1764135053141,0.00506634,2943.9,2943.4,0.00509641]
[1764135053848,0.00506634,2943.9,2943.5,0.1153]
[1764135054240,0.4695,2943.6,2943.5,0.4813]
[1764135055144,0.00506634,2943.9,2943.5,0.5966]
[1764135055350,0.00506634,2943.9,2943.8,0.4813]
[1764135055546,0.00506634,2943.9,2943.7,0.64654109]
[1764135055744,0.4695,2943.8,2943.4,0.6516375]
[1764135057150,0.4695,2943.8,2943.7,0.4813]
[1764135062357,0.4695,2943.8,2943.4,0.6516375]
[1764135062660,0.4695,2943.8,2943.7,0.4958]
[1764135065759,0.7533,2943.5,2943.4,0.46929641]
[1764135068356,0.7533,2943.5,2943.4,0.00509641]
[1764135068553,1.56798666,2943.5,2943.4,0.00509641]
[1764135069156,0.7533,2943.5,2943.4,0.00509641]
[1764135072763,0.7533,2943.5,2943.4,0.46929641]
[1764135073369,1.56777377,2943.5,2943.4,0.46929641]
[1764135075169,0.7533,2943.5,2943.4,0.46929641]
[1764135075470,0.7533,2943.5,2943.4,0.00509641]
[1764135075670,0.4598,2943.5,2943.4,0.46929641]
[1764135078276,0.7533,2943.5,2943.4,0.46929641]
[1764135080772,0.7533,2943.5,2943.4,0.00509641]
[1764135081373,1.56872356,2943.5,2943.4,0.00509641]
[1764135083580,0.4598,2942.8,2942.7,2.90727447]
[1764135083766,0.46344,2943.5,2942.9,0.4642]
[1764135083968,0.81545602,2943.4,2942.9,0.4642]
[1764135084171,1.27525602,2943.3,2943.2,0.4642]
[1764135084878,1.22393293,2943.9,2943.2,0.4642]
[1764135085076,0.81521726,2943.8,2943.2,0.4642]
[1764135085380,0.81521726,2943.7,2943.2,0.4642]
[1764135085674,1.27501726,2943.6,2943.5,0.4642]
[1764135087778,0.2935,2943.5,2943.1,0.64654109]
[1764135089285,0.7533,2943.5,2943.4,0.4642]
[1764135089685,1.56870292,2943.5,2943.4,0.4642]
[1764135090584,0.81540292,2943.5,2943.4,0.4642]
[1764135090780,1.27521953,2943.7,2943.6,0.4642]
[1764135091086,1.27521953,2943.7,2943.1,0.64654109]
[1764135091287,0.81541953,2943.6,2943.1,0.64654109]
[1764135091482,0.7533,2943.5,2943.4,1.11074109]
[1764135091693,0.00506634,2943.9,2943.8,0.4642]
[1764135091898,1.28022525,2943.9,2943.8,0.4642]
[1764135092977,1.28022525,2943.9,2943.5,0.2785]
[1764135093180,0.46486634,2943.9,2943.5,0.2785]
[1764135094591,0.4598,2943.6,2943.5,0.4642]
[1764135095296,0.00506634,2943.9,2943.5,0.4642]
[1764135095591,0.4485,2943.6,2943.5,0.4642]
[1764135095987,0.00506634,2943.9,2943.4,0.473]
[1764135095988,0.722,2943.5,2943.4,0.473]
[1764135096295,0.65160743,2943.9,2943.4,0.473]
[1764135096296,0.00506634,2943.9,2943.4,0.473]
[1764135096497,0.815429,2943.8,2943.4,0.473]
[1764135096695,0.815429,2943.7,2943.4,0.473]
[1764135096897,0.00506634,2943.9,2943.4,0.473]
[1764135097198,0.8154289,2943.8,2943.4,0.473]
[1764135097398,1.2639289,2943.7,2943.6,0.473]
[1764135097990,1.2639289,2943.7,2943.1,0.64654109]
[1764135098199,0.4485,2943.7,2943.1,0.64654109]
[1764135099688,0.4485,2943.7,2943.6,0.473]
[1764135099897,1.26386093,2943.7,2943.6,0.473]
[1764135104095,1.26380555,2943.7,2943.6,0.473]
[1764135105203,0.4485,2943.7,2943.6,0.473]
[1764135105504,1.26379983,2943.7,2943.6,0.473]
[1764135106205,0.4485,2943.7,2943.6,0.473]
[1764135106604,0.45356634,2943.9,2943.8,0.473]
[1764135106999,1.2688508,2943.9,2943.5,0.2785]
[1764135107199,0.81528446,2943.8,2943.5,0.2785]
[1764135107398,0.4485,2943.6,2943.5,0.7515]
[1764135107603,0.4485,2943.6,2943.5,0.473]
[1764135110501,0.45356634,2943.9,2943.8,0.473]
[1764135110700,0.82029048,2943.9,2943.8,0.473]
[1764135110902,2.13763753,2944.6,2944.4,0.473]
[1764135111097,0.4485,2944.6,2944.5,0.473]
[1764135111405,0.4485,2944.6,2944.0,1.8808]
[1764135111611,0.722,2944.5,2944.4,0.473]
[1764135111905,0.72475535,2944.5,2944.4,0.473]
[1764135112204,0.45125535,2944.5,2944.4,0.473]
[1764135112506,0.72475535,2944.5,2944.4,0.473]
[1764135113100,0.45125535,2944.5,2944.4,0.473]
[1764135113602,0.72475535,2944.5,2944.4,0.473]
[1764135113802,0.4485,2944.1,2944.0,0.473]
[1764135114001,0.45125535,2944.5,2944.4,0.473]
[1764135114602,0.00275535,2944.5,2944.4,0.473]
[1764135115707,0.2735,2945.5,2944.6,0.473]
[1764135115900,0.2735,2945.5,2944.6,1.10341236]
[1764135116503,0.27714603,2945.5,2944.6,1.10341236]
[1764135116704,0.27714603,2945.5,2944.8,0.00509641]
[1764135116907,0.27714603,2945.5,2944.8,0.00858509]
[1764135117602,0.4485,2944.9,2944.8,0.48158509]
[1764135118509,0.27714603,2945.5,2944.8,0.48158509]
[1764135118510,0.27714603,2945.5,2944.9,0.473]
[1764135119305,0.27714603,2945.5,2945.0,0.2754]
[1764135120299,0.4485,2945.1,2945.0,0.473]
[1764135120709,0.4485,2944.9,2944.8,0.48158509]
[1764135121916,0.27714603,2945.5,2945.0,0.1088]
[1764135123213,0.72864603,2945.5,2945.4,0.4767]
[1764135123601,0.45514603,2945.5,2945.4,0.4767]
[1764135123801,0.74224603,2945.5,2945.0,0.1088]
[1764135124012,0.74224603,2945.5,2944.8,1.01358509]
[1764135124206,0.74224603,2945.5,2944.8,0.00858509]
[1764135124409,0.00364603,2945.5,2945.4,0.4767]
[1764135124607,0.74224603,2945.5,2945.4,0.4767]
[1764135126414,0.74224603,2945.5,2945.0,0.1122]
[1764135127007,0.00364603,2945.5,2945.4,0.4927]
[1764135127604,0.80019236,2946.4,2945.5,0.2758]
[1764135127803,0.79813103,2946.3,2945.5,0.2758]
[1764135128003,0.80019236,2946.4,2945.5,0.2758]
[1764135128514,0.17404554,2946.4,2945.5,0.2758]
[1764135130710,0.00426554,2946.4,2945.5,0.2758]
[1764135131314,0.00426554,2946.4,2945.7,0.63041236]
[1764135131511,0.46436554,2946.4,2946.3,0.4927]
[1764135131815,0.46436554,2946.4,2945.7,0.63041236]
[1764135132011,0.46436554,2946.4,2945.6,0.61]
[1764135132818,0.4601,2945.7,2945.6,0.4927]
[1764135133708,0.2754,2946.0,2945.6,0.4927]
[1764135134415,0.4601,2945.4,2945.3,2.8657]
[1764135134613,0.2754,2946.0,2945.5,0.2602]
[1764135135012,0.4601,2945.6,2945.5,0.4927]
[1764135136115,0.2754,2946.0,2945.5,0.7529]
[1764135136420,1.82829988,2947.3,2946.3,0.4927]
[1764135136611,0.2754,2947.5,2946.3,0.4927]
[1764135136808,0.7472,2947.0,2946.9,0.4927]
[1764135137108,0.4601,2947.0,2946.9,0.4927]
[1764135137505,0.73825149,2947.0,2946.9,0.49542144]
[1764135137815,0.46285149,2947.0,2946.9,0.49542144]
[1764135138015,0.00275149,2947.0,2946.9,0.49542144]
[1764135138219,0.46285149,2947.0,2946.9,0.00272144]
[1764135138516,0.46285149,2947.0,2946.9,0.49542144]
[1764135138719,0.73825149,2947.0,2946.9,0.49542144]
[1764135139112,0.46285149,2947.0,2946.9,0.49542144]
[1764135139913,0.00275149,2947.0,2946.9,0.49542144]
[1764135140121,0.73825149,2947.0,2946.9,0.49542144]
[1764135140313,0.46285149,2947.0,2946.9,0.49542144]
[1764135140721,0.00275149,2947.0,2946.9,0.49542144]
[1764135141715,0.73825149,2947.0,2946.9,0.49542144]
[1764135142220,0.46285149,2947.0,2946.9,0.49542144]
[1764135142421,0.00275149,2947.0,2946.9,0.49542144]
[1764135142918,0.46285149,2947.0,2946.9,0.49542144]
[1764135143223,0.00275149,2947.0,2946.9,0.49542144]
[1764135144233,0.73825149,2947.0,2946.9,0.00272144]
[1764135145618,0.7355,2946.5,2946.4,0.00509641]
[1764135146127,0.4601,2945.6,2945.5,0.4927]
[1764135146318,0.2754,2946.0,2945.5,0.4927]
[1764135146623,0.4601,2945.6,2945.5,0.00332353]
[1764135149625,0.00509641,2945.8,2945.5,0.49602353]
[1764135149826,0.4601,2945.6,2945.5,0.49602353]
[1764135150322,0.4601,2945.6,2945.5,0.00332353]
[1764135150518,0.00509641,2945.8,2945.3,0.00509641]
[1764135150519,0.4601,2945.4,2945.3,0.00509641]
[1764135151627,0.4601,2945.4,2945.3,0.00931775]
[1764135154821,0.00509641,2945.8,2945.4,0.4927]
[1764135155015,0.46519641,2945.8,2945.7,0.4927]
[1764135155215,0.00509641,2945.8,2945.7,0.4927]
[1764135156321,0.47589641,2945.8,2945.3,0.00931775]
[1764135156720,0.47589641,2945.8,2945.7,0.4548]
[1764135158122,0.47589641,2945.8,2945.3,0.00931775]
[1764135158324,0.4708,2945.4,2945.3,0.46411775]
[1764135158827,0.47589641,2945.8,2945.7,0.4548]
[1764135162129,0.00509641,2945.8,2945.7,0.4548]
[1764135165536,0.47589641,2945.8,2945.7,0.4548]
[1764135166830,0.00509641,2945.8,2945.7,0.4548]
[1764135168229,0.47589641,2945.8,2945.3,0.00931775]
[1764135169034,0.47589641,2945.8,2945.7,0.4548]
[1764135169235,0.00509641,2945.8,2945.7,0.4548]
[1764135170833,0.47589641,2945.8,2945.3,0.00931775]
[1764135171032,0.00509641,2945.8,2945.3,0.46411775]
[1764135171424,0.4708,2945.4,2945.3,0.00931775]
[1764135172027,0.4708,2945.4,2945.3,0.46411775]
[1764135172336,0.00509641,2945.8,2945.4,0.4548]
[1764135173226,0.4708,2945.5,2945.4,0.4548]
[1764135174634,0.4708,2945.4,2945.3,0.00931775]
[1764135174828,0.4708,2945.4,2945.3,0.46411775]
[1764135176839,0.00509641,2945.8,2945.3,0.46411775]
[1764135177032,1.27185067,2945.7,2945.6,0.4548]
[1764135178931,0.4708,2945.4,2945.1,1.82080768]
[1764135179137,0.4708,2945.2,2945.1,0.4548]
[1764135180035,0.7658,2945.5,2945.4,0.4548]
[1764135180231,0.17490641,2945.8,2945.4,0.4548]
[1764135180431,0.80099538,2945.7,2945.4,0.4548]
[1764135180630,1.27179538,2945.6,2945.5,0.4548]
[1764135181333,0.295,2945.5,2945.2,0.4548]
[1764135181533,0.4708,2945.6,2945.5,0.4548]
[1764135182230,1.27179443,2945.6,2945.5,0.4548]
[1764135183831,0.80099443,2945.6,2945.5,1.37752057]
[1764135184027,0.00509641,2945.8,2945.7,0.4581]
[1764135184738,1.25882602,2945.8,2945.7,0.4581]
[1764135184930,0.45749641,2945.8,2945.7,0.4581]
[1764135185534,0.45749641,2945.8,2945.5,0.64582057]
[1764135185835,0.7552,2945.5,2945.3,1.82080768]
[1764135186041,0.4687,2945.3,2945.2,1.82080768]
[1764135186337,0.2865,2945.5,2945.1,0.48244954]
[1764135186338,0.4687,2945.2,2945.1,0.48244954]
[1764135186542,0.4687,2945.2,2945.1,0.00274954]
[1764135187731,0.4687,2944.4,2944.3,2.30050768]
[1764135188038,0.2865,2945.0,2944.4,0.4797]
[1764135188241,0.2865,2945.0,2944.4,1.12552057]
[1764135188432,0.2865,2945.0,2944.5,0.2976]
[1764135188633,0.2865,2945.0,2944.9,0.4797]
[1764135188634,0.75844223,2945.0,2944.9,0.4797]
[1764135189141,0.4687,2944.8,2944.7,1.12552057]
[1764135189340,0.47194223,2945.0,2944.9,0.4797]
[1764135189541,0.75844223,2945.0,2944.9,0.4797]
[1764135191246,0.00324223,2945.0,2944.9,0.4797]
[1764135192541,0.47194223,2945.0,2944.9,0.4797]
[1764135193349,0.75844223,2945.0,2944.9,0.4797]
[1764135193647,0.47194223,2945.0,2944.9,0.4797]
[1764135194843,0.75844223,2945.0,2944.6,1.81669144]
[1764135195149,0.75844223,2945.0,2944.5,2.12213293]
[1764135195848,0.00324223,2945.0,2944.9,0.4797]
[1764135197145,0.00324223,2945.0,2944.9,2.29639144]
[1764135197349,0.00509641,2945.8,2945.7,0.4797]
[1764135197845,0.47379641,2945.8,2945.0,2.11198754]
[1764135198248,0.47625528,2945.8,2945.0,2.11198754]
[1764135198855,0.80048632,2945.7,2944.9,1.81438754]
[1764135199054,0.2865,2945.5,2945.0,0.2976]
[1764135199255,0.2865,2945.5,2945.4,0.4797]
[1764135199454,0.4687,2945.5,2945.4,0.4797]
[1764135199955,0.7552,2945.5,2945.0,0.2976]
[1764135200151,0.7552,2945.5,2944.9,1.81438754]
[1764135201751,0.7552,2945.5,2945.4,0.4797]
[1764135201957,0.00755528,2945.8,2945.4,0.4797]
[1764135202157,0.80140924,2945.7,2945.4,0.4797]
[1764135202351,0.7552,2945.5,2944.9,1.81438754]
[1764135202551,0.7552,2945.5,2945.4,0.4797]
[1764135203651,0.7552,2945.0,2944.9,1.81438754]
[1764135203851,0.4687,2944.9,2944.8,0.4797]
[1764135204153,0.4687,2944.9,2944.7,1.81438754]
[1764135204154,0.4687,2944.6,2944.5,0.48754149]
[1764135204656,0.2865,2945.0,2944.5,0.48754149]
[1764135206259,0.4687,2944.6,2944.5,0.48754149]
[1764135207155,0.4687,2944.6,2944.5,0.00784149]
[1764135210568,0.4687,2944.6,2944.5,0.48754149]
[1764135211047,0.4687,2944.6,2944.5,0.00784149]
[1764135216060,0.4687,2944.6,2944.0,1.81438754]
[1764135216262,0.7415,2944.0,2943.2,2.43922764]
[1764135216562,0.7415,2944.0,2943.5,0.64656804]
[1764135217158,0.74659641,2944.0,2943.5,0.65451697]
[1764135217363,0.00509641,2944.0,2943.9,0.4576]
[1764135217554,0.74659641,2944.0,2943.9,0.4576]
[1764135217755,0.4724,2943.9,2943.8,1.10416804]
[1764135218763,0.4724,2943.9,2943.8,0.4576]
[1764135220865,0.4724,2943.6,2943.5,0.46554893]
[1764135221058,0.47517687,2943.6,2943.5,0.46554893]
[1764135222954,0.00277687,2943.6,2943.5,0.75694893]
[1764135224863,0.47517687,2943.6,2943.5,0.46554893]
[1764135226170,0.00277687,2943.6,2943.5,0.75694893]
[1764135227268,0.47517687,2943.6,2943.5,0.00794893]
[1764135227677,0.47517687,2943.6,2943.5,0.46554893]
[1764135228464,0.47517687,2943.6,2943.5,0.00794893]
[1764135231776,0.47517687,2943.6,2943.5,0.46554893]
[1764135233975,0.47517687,2943.6,2943.5,0.00794893]
[1764135234676,0.47517687,2943.6,2943.5,0.46554893]
[1764135236175,0.00277687,2943.6,2943.5,0.46554893]
[1764135236474,0.00277687,2943.6,2943.5,0.75694893]
[1764135237066,0.00509641,2944.0,2943.9,0.4576]
[1764135237262,0.2691,2944.5,2944.4,0.4576]
[1764135237263,0.7415,2944.5,2944.4,0.4576]
[1764135238070,0.74408894,2944.5,2944.4,0.4576]
[1764135240772,0.4724,2944.1,2944.0,2.27371997]
[1764135240977,0.4724,2944.1,2944.0,0.4576]
[1764135241680,0.00258894,2944.5,2944.4,0.4576]
[1764135241875,1.2021997,2945.5,2944.6,0.4576]
[1764135242176,0.9156997,2945.8,2945.3,0.4939]
[1764135242384,1.48168728,2946.0,2945.6,0.4939]
[1764135242385,1.25687988,2945.7,2945.6,0.4939]
[1764135242578,1.25687988,2945.7,2945.0,0.2735]
[1764135242780,0.294,2945.5,2945.1,0.49899641]
[1764135242981,0.4548,2945.2,2945.1,0.49899641]
[1764135243478,0.7488,2945.5,2945.4,0.4939]
[1764135243989,0.294,2945.5,2945.1,0.49899641]
[1764135244189,0.7488,2945.5,2945.4,0.4939]
[1764135244389,0.45989641,2945.6,2945.5,0.4939]
[1764135244579,0.4548,2945.2,2945.1,0.49899641]
[1764135245284,0.294,2945.5,2945.1,0.49899641]
[1764135245483,0.00509641,2945.6,2945.5,0.4713]
[1764135245984,0.7344,2945.5,2945.4,0.4713]
[1764135247082,0.4601,2945.2,2945.1,0.47639641]
[1764135248387,0.4601,2945.2,2945.1,0.00509641]
[1764135248587,0.4601,2945.2,2945.1,0.47639641]
[1764135248782,0.00509641,2945.6,2945.5,0.4713]
[1764135248989,0.46519641,2945.6,2945.5,0.4713]
[1764135249684,0.46519641,2945.6,2945.1,0.00509641]
[1764135249987,0.2743,2945.5,2945.1,0.00509641]
[1764135250381,0.7344,2945.5,2945.4,0.4713]
[1764135252490,0.4601,2945.2,2945.1,0.47639641]
[1764135256388,0.4601,2945.2,2945.1,0.00509641]
[1764135257593,0.4601,2945.2,2945.1,0.47639641]
[1764135257791,0.4601,2945.2,2945.1,0.00509641]
[1764135263196,0.4601,2945.1,2945.0,1e-08]
[1764135263497,0.4601,2945.1,2943.5,0.2703]
[1764135263498,0.4601,2944.0,2943.9,0.4713]
[1764135264296,0.2743,2945.0,2944.4,0.4713]
[1764135264507,0.7344,2944.5,2944.4,1.10115013]
[1764135264706,0.7344,2944.5,2944.4,0.4713]
[1764135264908,0.4601,2944.2,2944.1,1.10115013]
[1764135265611,0.2743,2944.5,2944.1,1.10115013]
[1764135265799,0.7344,2944.5,2944.4,0.4713]
[1764135266204,0.4601,2944.5,2944.4,0.4713]
[1764135266604,0.2743,2945.0,2944.4,0.4713]
[1764135267004,0.4601,2944.5,2944.4,0.4713]
[1764135267401,0.7344,2944.5,2944.4,0.4713]
[1764135267605,0.7344,2944.5,2944.1,0.62985013]
[1764135267908,0.4601,2944.2,2944.1,1.10115013]
[1764135268611,0.2743,2944.5,2944.1,1.10115013]
[1764135268814,0.7344,2944.5,2944.4,0.4713]
[1764135269615,0.4601,2944.5,2944.4,0.4713]
[1764135269924,0.2743,2945.0,2944.4,1.10115013]
[1764135270115,0.7344,2944.5,2944.4,1.10115013]
[1764135270309,0.7344,2944.5,2944.4,0.4713]
[1764135270915,0.4601,2944.2,2944.1,1.10115013]
[1764135271216,0.7344,2944.5,2944.4,0.4713]
[1764135272516,0.7344,2944.5,2943.9,1.81870623]
[1764135272517,0.4601,2944.2,2943.9,1.81870623]
[1764135272818,0.4601,2944.2,2944.1,0.4713]
[1764135274418,0.7344,2944.5,2944.4,0.4713]
[1764135274608,0.7344,2945.0,2944.9,0.4713]
[1764135274814,0.2743,2945.5,2944.9,0.4713]
[1764135275116,0.80110229,2945.4,2944.9,0.4713]
[1764135275318,0.80110229,2945.3,2944.9,0.4713]
[1764135275617,0.2743,2945.5,2944.9,0.4713]
[1764135275813,1.29429881,2945.4,2945.3,0.483]
[1764135276109,0.2743,2945.5,2944.5,0.143]
[1764135276110,0.4931,2945.2,2945.1,1.11285013]
[1764135276315,0.4931,2945.2,2945.1,0.483]
[1764135276518,0.4931,2944.9,2944.8,1.11285013]
[1764135276917,0.4931,2945.0,2944.9,0.483]
[1764135277116,0.7741,2945.0,2944.5,0.77285013]
[1764135277320,0.2743,2945.5,2944.5,0.77285013]
[1764135277321,0.2743,2945.5,2944.9,0.483]
[1764135277522,0.2743,2945.5,2945.0,0.2469]
[1764135277818,0.4931,2945.1,2945.0,0.483]
[1764135278623,0.2743,2945.5,2945.0,0.7299]
[1764135278826,0.49819641,2945.6,2945.5,0.483]
[1764135280113,0.4931,2945.4,2945.3,0.48809641]
[1764135282019,0.00509641,2945.6,2945.5,0.483]
[1764135282619,0.49819641,2945.6,2945.5,0.483]
[1764135283920,0.4931,2945.4,2945.3,0.48809641]
[1764135284115,0.281,2945.5,2945.4,0.483]
[1764135284319,0.7741,2945.5,2945.4,0.483]
[1764135284523,0.4931,2945.5,2945.4,0.483]
[1764135287127,0.7741,2945.5,2945.4,0.483]
[1764135287522,0.7741,2945.5,2945.3,0.00509641]
[1764135287523,0.4931,2945.4,2945.3,0.48809641]
[1764135288015,0.00509641,2945.6,2945.4,0.483]
[1764135288219,0.00509641,2945.6,2945.5,0.7761]
[1764135289730,0.49819641,2945.6,2945.5,0.483]
[1764135291622,0.00509641,2945.6,2945.5,1.38315013]
[1764135292227,0.4931,2945.4,2945.3,0.48809641]
[1764135292425,0.4931,2945.5,2945.4,0.483]
[1764135292624,0.00509641,2945.6,2945.5,0.7533]
[1764135294523,0.00509641,2945.6,2945.5,1.39893868]
[1764135296734,0.49819641,2945.6,2945.5,1.39893868]
[1764135296930,0.4931,2945.4,2945.3,0.48809641]
[1764135298018,0.00509641,2945.6,2945.5,0.7533]
[1764135298229,0.00509641,2945.6,2945.5,1.39893868]
[1764135299531,0.49819641,2945.6,2945.5,0.64563868]
[1764135299832,0.49819641,2945.6,2945.5,1.12863868]
[1764135301128,0.4931,2945.4,2945.3,0.48809641]
[1764135302337,0.46859641,2945.6,2945.5,0.491]
[1764135302631,0.46859641,2945.6,2945.5,1.13663868]
[1764135305636,0.00509641,2945.6,2945.5,1.40723868]
[1764135307537,0.49449641,2945.6,2945.5,1.13663868]
[1764135310234,0.4894,2945.4,2945.3,0.45719641]
[1764135314141,0.4894,2945.4,2945.3,0.00509641]
[1764135315736,0.4894,2945.4,2945.3,0.45719641]
[1764135316042,0.4894,2945.4,2945.3,0.00509641]
[1764135321838,1.29305738,2945.4,2945.3,0.00509641]
[1764135323149,0.4894,2945.4,2945.3,0.00509641]
[1764135326350,0.4894,2944.9,2944.8,2.26821997]
[1764135330150,0.4894,2944.9,2944.8,0.4521]
[1764135330547,0.2766,2945.0,2944.7,2.91385865]
[1764135330548,0.4894,2944.8,2944.7,2.91385865]
[1764135330750,0.4894,2944.8,2944.7,0.4521]
[1764135331259,0.4894,2944.7,2944.6,4.72331638]
[1764135332154,0.49449641,2945.6,2945.5,0.4521]
[1764135332459,0.49449641,2945.6,2945.5,1.09773868]
[1764135337767,0.00509641,2945.6,2945.5,1.38913868]
[1764135338265,0.45969641,2945.6,2945.5,1.09773868]
[1764135339568,0.45969641,2945.6,2945.5,0.64563868]
[1764135339760,0.45969641,2945.6,2945.5,1.10223868]
[1764135340366,0.00509641,2945.6,2945.5,1.39313868]
[1764135347574,0.26904826,2946.0,2945.6,0.4566]
[1764135347776,1.25096737,2945.9,2945.8,0.4566]
[1764135348676,1.2550055,2945.9,2945.8,0.4566]
[1764135352376,0.4546,2945.6,2945.5,0.4566]
[1764135356882,0.45863813,2945.9,2945.8,0.4566]
[1764135359981,1.26099607,2945.9,2945.8,0.4566]
[1764135360278,0.00403813,2945.9,2945.8,1.08618972]
[1764135363074,1.3934997,2946.4,2946.3,0.4933]
[1764135363283,1.28054239,2946.4,2946.3,0.4933]
[1764135364084,1.28319994,2946.4,2946.3,0.49666889]
[1764135365286,0.00265755,2946.4,2946.3,0.49666889]
[1764135365683,0.45445755,2946.4,2946.3,0.00336889]
[1764135365984,1.25657726,2946.4,2946.3,0.00336889]
[1764135366186,0.00265755,2946.4,2946.3,0.45176889]
[1764135368388,0.4518,2947.2,2947.1,0.4484]
[1764135368790,1.25303628,2947.2,2947.1,0.4484]
[1764135369195,0.2766,2947.5,2947.1,0.4484]
[1764135369388,1.25245455,2947.4,2947.3,0.4484]
[1764135369588,0.00260632,2947.5,2947.4,0.4484]
[1764135369892,1.25505583,2947.5,2947.4,0.4484]
[1764135370280,0.00260632,2947.5,2947.4,0.4484]
[1764135370680,0.45440632,2947.5,2947.4,0.4484]
[1764135370885,0.00260632,2947.5,2947.4,0.4484]
[1764135372387,0.73580632,2947.5,2947.0,0.0775]
[1764135372994,0.00260632,2947.5,2947.4,0.4484]
[1764135373996,0.45440632,2947.5,2947.4,0.4484]
[1764135374298,0.73580632,2947.5,2947.4,0.4484]
[1764135374500,0.00260632,2947.5,2947.4,0.4484]
[1764135375296,0.45440632,2947.5,2947.4,0.4484]
[1764135375494,0.73580632,2947.5,2947.4,0.4484]
[1764135375694,0.00260632,2947.5,2947.4,0.4484]
[1764135376699,0.73580632,2947.5,2947.2,0.62958972]
[1764135376896,0.73580632,2947.5,2947.2,1.07798972]
[1764135376897,0.4518,2947.3,2947.2,1.07798972]
[1764135377497,0.4518,2947.3,2947.2,0.4484]
[1764135378695,0.4518,2947.3,2946.5,2.27590621]
[1764135378696,0.7332,2947.0,2946.5,0.2893]
[1764135379801,0.4518,2946.6,2946.5,0.4484]
[1764135381695,0.4518,2946.4,2946.3,0.45176889]
[1764135381897,0.4518,2946.4,2946.3,0.00336889]
[1764135382293,0.4518,2946.4,2946.3,0.45176889]
[1764135383402,0.4518,2946.4,2946.3,1.08135861]
[1764135386204,0.2814,2947.0,2946.4,0.4484]
[1764135387897,0.4518,2946.6,2946.5,0.4484]
[1764135388096,0.4518,2946.4,2946.3,0.00336889]
[1764135388794,0.4518,2946.4,2946.3,0.45176889]
[1764135390104,0.4518,2946.4,2946.3,0.00336889]
[1764135391303,0.4518,2946.4,2946.3,0.45176889]
[1764135391503,0.2814,2947.0,2946.4,0.4484]
[1764135391703,0.79845235,2946.9,2946.4,0.4484]
[1764135392012,0.4518,2946.5,2946.4,0.4484]
[1764135392198,0.7332,2946.5,2946.3,0.63295861]
[1764135392502,0.4518,2946.4,2946.3,0.00336889]
[1764135395602,1.3668397,2947.0,2946.3,0.45176889]
[1764135395801,0.79871038,2946.9,2946.3,0.45176889]
[1764135396002,0.79871038,2946.8,2946.3,0.45176889]
[1764135396203,0.79871038,2946.7,2946.3,0.45176889]